Cogmind - Beta 12 @@@ ROGUE MODE // 2023.05.25 @ 13:34:52 Player: Chloroform Result: Self-destructed Performance ------------- Evolutions (2) 1000 Regions Visited (4) 800 Robots Destroyed (38) 190 Value Destroyed (869) 869 Prototype IDs (2) 40 Alien Tech Used (0) 0 Bonus (180) 180 TOTAL SCORE: 3079 Bonus ------- High Alert Combat Kills 12 Follower Combat Kills 168 Cogmind --------- Core Integrity 441/550 Matter 118/300 Energy 430/430 System Corruption 0% Temperature Cool (0) Movement Walking (190) Ox1 Location -8/Materials Parts ------- > --- POWER (2) -------- Improved Ion Engine Improved Ion Engine > --- PROPULSION (4) --- Armored Treads Aluminum Leg Aluminum Leg Aluminum Leg > --- UTILITY (2) ------ Small Storage Unit Launcher Guidance Computer > --- WEAPON (3) ------- Assault Rifle Shotgun Mini Grenade Launcher > --- INVENTORY (8) ---- Light Ion Engine Light Ion Engine Medium Storage Unit Peak State ------------ > --- POWER ------------ Improved Ion Engine Improved Ion Engine > --- PROPULSION ------- Armored Treads Aluminum Leg Aluminum Leg Aluminum Leg > --- UTILITY ---------- Small Storage Unit Launcher Guidance Computer > --- WEAPON ----------- Assault Rifle Shotgun Mini Grenade Launcher > --- INVENTORY -------- Light Ion Engine Light Ion Engine Medium Storage Unit [Rating: 20] Favorites ----------- Power Ion Engine Engine Ion Engine Propulsion Aluminum Leg Treads Armored Treads Leg Aluminum Leg Utility Sensor Array Device Sensor Array Storage Small Storage Unit Processor Launcher Guidance Computer Weapon Assault Rifle Ballistic Gun Assault Rifle Launcher Mini Grenade Launcher Special Weapon Welding Torch Special Melee Weapon Datajack Build | -11 -10 -10 -9 -8 ------- Run | Jun Mat Min Mat Mat Slots Evolved 4 | . . . 2 2 Power 1 | . . . . 1 Propulsion 2 | . . . 1 1 Utility . | . . . . . Weapon 1 | . . . 1 . Parts Attached 34 | . 10 1 8 15 Power 4 | . . . . 4 Engine 4 | . . . . 4 Core . | . . . . . Reactor . | . . . . . Propulsion 7 | . 1 . 2 4 Treads 1 | . . . . 1 Leg 6 | . 1 . 2 3 Wheel . | . . . . . Hover . | . . . . . Flight . | . . . . . Utility 6 | . 2 . 2 2 Device 3 | . 2 . 1 . Storage 2 | . . . 1 1 Processor 1 | . . . . 1 Hackware . | . . . . . Protection . | . . . . . Artifact . | . . . . . Weapon 17 | . 7 1 4 5 Energy Gun . | . . . . . Energy Cannon . | . . . . . Ballistic Gun 13 | . 7 . 4 2 Ballistic Cannon . | . . . . . Launcher 2 | . . . . 2 Special Weapon 1 | . . . . 1 Impact Weapon . | . . . . . Slashing Weapon . | . . . . . Piercing Weapon . | . . . . . Special Melee Weapon 1 | . . 1 . . Unidentified Prototypes . | . . . . . Parts Lost 10 | . . . 2 8 Power 1 | . . . . 1 Propulsion 4 | . . . 1 3 Utility 1 | . . . . 1 Weapon 4 | . . . 1 3 Highest Loss Streak 8 | . . . 1 8 To Critical Strikes . | . . . . . Average Slot Usage (%) 97 | . 99 100 98 87 Engine 13 | . 14 14 11 15 Leg 29 | . 28 28 32 30 Device 11 | . 13 14 10 5 Storage 12 | . 14 14 11 9 Ballistic Gun 28 | . 28 27 33 19 Naked Turns . | . . . . . Heaviest Build 34 | 14 17 16 24 34 Greatest Support 40 | 20 20 20 30 40 Greatest Overweight (x) 1 | . . . 1 1 Average Overweight (x) . | . . . . . Largest Inventory Capacity 10 | 8 8 8 10 10 Average Capacity 8 | 8 8 8 9 9 Most Carried 10 | 6 8 8 10 10 Average Carried 8 | 6 7 7 8 8 Final Capacity 10 | 8 8 8 10 8 Final Carried 10 | 6 8 8 10 3 Class Distribution -------------------- 59% | Mutant 35% | Skirmisher 3% | Scavenger-Mutant Dominant Class ---------------- Mutant | -10/Materials Mutant | -10/Mines Skirmisher | -9/Materials Skirmisher | -8/Materials Resources | -11 -10 -10 -9 -8 ----------- Run | Jun Mat Min Mat Mat Matter Collected 970 | 200 202 109 384 75 Remotely 158 | . 158 . . . Salvage Created 1086 | . 319 47 533 187 Parts 94 | . 29 6 45 14 Haulers Intercepted . | . . . . . Recyclers Shooed 1 | . 1 . . . Parts Field Recycled . | . . . . . Retrieved Matter . | . . . . . Parts Self-Destructed . | . . . . . Prevented . | . . . . . Kills | -11 -10 -10 -9 -8 ------- Run | Jun Mat Min Mat Mat Combat Hostiles Destroyed 27 | . 8 3 14 2 Guns 27 | . 8 3 14 2 Classes Destroyed 10 | . 6 . 2 2 Worker 3 | . 1 . 1 1 Builder 3 | . . . 1 2 Tunneler 1 | . . . . 1 Recycler 1 | . 1 . . . Operator 1 | . 1 . . . Watcher 2 | . 1 . 1 . Swarmer 10 | . 3 3 4 . Grunt 14 | . 5 . 8 1 Sentry 2 | . . . 2 . Hunter 1 | . . . . 1 Best Kill Streak 8 | . 8 3 4 3 Combat Bots Only 6 | . 6 3 3 2 Max Kills in Single Turn 1 | . 1 1 1 1 Gunslinging . | . . . . . Exploded . | . . . . . Melee . | . . . . . Uniques/NPCs Destroyed . | . . . . . Combat | -11 -10 -10 -9 -8 -------- Run | Jun Mat Min Mat Mat Damage Taken 1332 | . 153 76 396 707 Core 159 | . 18 16 16 109 Absorbed by Shields . | . . . . . Regen/Repaired (Parts) 14 | . . . 14 . Core Remaining (%) 94 | 100 . 86 96 . Volleys Fired 99 | . 20 6 28 45 Largest 3 | . 2 2 3 3 Hottest 66 | . 46 43 66 63 Shots Fired 192 | . 40 12 84 56 Gun 154 | . 40 12 84 18 Cannon . | . . . . . Launcher 7 | . . . . 7 Special 31 | . . . . 31 Kinetic 154 | . 40 12 84 18 Thermal 31 | . . . . 31 Explosive 7 | . . . . 7 Electromagnetic . | . . . . . Robot Hit Streak 12 | . 9 5 6 12 Robot Miss Streak 5 | . 4 4 5 4 Penetration Max . | . . . . . Secondary Targets 2 | . . 1 1 . Max Gunslinging Chain 1 | . . 1 1 . Shots Hit Robots 107 | . 26 6 43 32 Core Hits 67 | . 20 3 26 18 Critical Kills 1 | . . . 1 . Critical Parts Destroyed 1 | . . . 1 . Critical Strikes 2 | . . . 2 . Destroy 2 | . . . 2 . Melee Attacks . | . . . . . Impact . | . . . . . Slashing . | . . . . . Piercing . | . . . . . Sneak Attacks . | . . . . . Combat Hostiles . | . . . . . Follow-up Attacks . | . . . . . Damage Inflicted 1439 | . 379 83 654 323 Guns 1228 | . 379 83 654 112 Cannons . | . . . . . Explosions 156 | . . . . 156 Melee . | . . . . . Ramming . | . . . . . Kinetic 1228 | . 379 83 654 112 Thermal 55 | . . . . 55 Explosive 156 | . . . . 156 Electromagnetic . | . . . . . Impact . | . . . . . Slashing . | . . . . . Piercing . | . . . . . Highest Corruption 2 | . 2 2 1 . Average Corruption 1 | . 2 2 1 . Corruption Purged . | . . . . . Corruption Blocked . | . . . . . Effects 11 | . 3 6 2 . Message Errors 2 | . 1 1 . . Matter Fused 4 | . 1 3 . . Heat Flow Errors 2 | . . 2 . . Energy Discharges 1 | . 1 . . . Data Loss (minor) 2 | . . . 2 . Overload Shots . | . . . . . Overflow Damage . | . . . . . Projectiles . | . . . . . Explosions . | . . . . . Melee . | . . . . . Knockbacks . | . . . . . Impact . | . . . . . Kinetic . | . . . . . Secondary . | . . . . . Self-Inflicted Damage . | . . . . . Shots . | . . . . . Rammed . | . . . . . Targets Rammed . | . . . . . Kicked . | . . . . . Crushed . | . . . . . Highest Temperature 194 | . 4 194 26 5 Average Temperature 29 | . 1 86 7 3 Received Heat Transfer 276 | . 69 . 135 72 Siege Activations . | . . . . . Robots Corrupted . | . . . . . Combat Hostiles . | . . . . . Parts Fried . | . . . . . Impact Corruptions . | . . . . . Robots Melted . | . . . . . Combat Hostiles . | . . . . . Parts Melted 2 | . . . . 2 Heat Transferred 450 | . . . . 450 Parts Sabotaged . | . . . . . Parts Stolen . | . . . . . Parts Stripped . | . . . . . Power Chain Reactions . | . . . . . Missiles Intercepted . | . . . . . Alert | -11 -10 -10 -9 -8 ------- Run | Jun Mat Min Mat Mat Peak Influence 497 | . 258 138 497 236 Initial 166 | . . 53 53 166 Average 188 | . 151 135 277 186 Maximum Alert Level 2 | . 1 . 2 1 Low Security (%) 59 | 100 59 100 28 72 Level 1 37 | . 40 . 62 27 Level 2 2 | . . . 9 . Level 3 . | . . . . . Level 4 . | . . . . . Level 5 . | . . . . . High Security . | . . . . . Max Security . | . . . . . Squads Dispatched 7 | . 1 . 3 3 Investigation 2 | . . . 1 1 Extermination . | . . . . . Reinforcement 5 | . 1 . 2 2 Assault . | . . . . . Garrison . | . . . . . Intercept . | . . . . . Searches Triggered . | . . . . . Construction Impeded 1 | . . . . 1 Haulers Reinforced . | . . . . . Active Scanning Responses . | . . . . . Cargo Convoy Interrupts . | . . . . . Stealth | -11 -10 -10 -9 -8 --------- Run | Jun Mat Min Mat Mat Distress Signals 7 | . . . 5 2 Communications Jammed . | . . . . . Distress Signals . | . . . . . Times Spotted 51 | . 15 3 27 6 Peak Tracking Total 6 | . 4 3 6 5 Tactical Retreats 5 | . 2 . 3 . Traps | -11 -10 -10 -9 -8 ------- Run | Jun Mat Min Mat Mat Traps Triggered 3 | . 1 . 2 . Indirectly . | . . . . . Trap Hack Attempts . | . . . . . Triggered . | . . . . . Disarmed . | . . . . . Reprogrammed . | . . . . . Reused . | . . . . . Traps Extracted . | . . . . . Installed . | . . . . . Triggered . | . . . . . Machines | -11 -10 -10 -9 -8 ---------- Run | Jun Mat Min Mat Mat Machines Disabled 3 | . . 1 . 2 Max in Single Turn 1 | . . 1 . 1 Machines Repaired . | . . . . . Machines Sabotaged . | . . . . . Overloaded Fab Kills . | . . . . . Hacking | -11 -10 -10 -9 -8 --------- Run | Jun Mat Min Mat Mat Machines Accessed 8 | . 5 . 2 1 Terminals 7 | . 5 . 1 1 Fabricators . | . . . . . Repair Stations 1 | . . . 1 . Recycling Units . | . . . . . Scanalyzers . | . . . . . Garrison Access . | . . . . . Total Hacks 23 | . 13 . 6 4 Successful 14 | . 9 . 5 . Failed 9 | . 4 . 1 4 Catastrophic . | . . . . . Database Lockouts . | . . . . . Manual . | . . . . . Terminals 20 | . 13 . 3 4 Fabricators . | . . . . . Repair Stations 3 | . . . 3 . Recycling Units . | . . . . . Scanalyzers . | . . . . . Garrison Access . | . . . . . Terminal Hacks 12 | . 9 . 3 . Record 6 | . 5 . 1 . Prototype ID Bank 1 | . . . 1 . Emergency Access Points 1 | . . . 1 . Alert Level 1 | . 1 . . . Locate Traps 1 | . 1 . . . Zone Layout 2 | . 2 . . . Fabricator Hacks . | . . . . . Repair Station Hacks 2 | . . . 2 . Scan Component 1 | . . . 1 . Repair 1 | . . . 1 . Recycling Unit Hacks . | . . . . . Scanalyzer . | . . . . . Garrison Access Hacks . | . . . . . Unauthorized Hacks . | . . . . . Terminals . | . . . . . Fabricators . | . . . . . Repair Stations . | . . . . . Recycling Units . | . . . . . Scanalyzers . | . . . . . Garrison Access . | . . . . . Data Cores Recovered 1 | . 1 . . . Used . | . . . . . Hacking Detections 4 | . 1 . 2 1 Full Trace Events 2 | . . . 1 1 Feedback Events . | . . . . . Feedback Blocked . | . . . . . Robot Schematics Acquired . | . . . . . Robots Built . | . . . . . Authchips . | . . . . . Time . | . . . . . Total Robot Build Rating . | . . . . . Part Schematics Acquired . | . . . . . Parts Built . | . . . . . Authchips . | . . . . . Time . | . . . . . Total Part Build Rating . | . . . . . Parts Repaired 1 | . . . 1 . Time 26 | . . . 26 . Parts Recycled . | . . . . . Recycled Matter . | . . . . . Retrieved Matter . | . . . . . Retrieved Components . | . . . . . Parts Scanalyzed . | . . . . . Part Schematics Acquired . | . . . . . Parts Damaged . | . . . . . Bothacking | -11 -10 -10 -9 -8 ------------ Run | Jun Mat Min Mat Mat Used RIF Installer . | . . . . . Robots Hacked . | . . . . . Non-combat . | . . . . . Combat . | . . . . . Robot Hacks Applied . | . . . . . Relay Couplers Released . | . . . . . Fabnet Peak Effective % . | . . . . . Robots Rewired . | . . . . . Allies Hacked . | . . . . . Hacks Repelled . | . . . . . Allies | -11 -10 -10 -9 -8 -------- Run | Jun Mat Min Mat Mat Total Allies 3 | . . 3 . . Largest Group 3 | . . 3 3 . Highest-Rated Group 40 | . . 40 40 . Highest-Rated Ally 16 | . . 16 16 . Total Orders 1 | . . . 1 . GUARD 1 | . . . 1 . Ally Attacks 44 | . . . 44 . Total Damage 444 | . . . 444 . Kills 8 | . . . 8 . Allies Corrupted . | . . . . . Allies Melted . | . . . . . Intel | -11 -10 -10 -9 -8 ------- Run | Jun Mat Min Mat Mat Robot Analysis Total . | . . . . . Derelict Logs Recovered 1 | . . 1 . . Drone Launches . | . . . . . Drone Recoveries . | . . . . . Exploration | -11 -10 -10 -9 -8 ------------- Run | Jun Mat Min Mat Mat Turns Passed 1874 | 15 732 306 533 288 Spaces Moved 1147 | 1 488 238 291 129 Core . | . . . . . Treads . | . . . . . Legs 1147 | 1 488 238 291 129 Wheels . | . . . . . Hover . | . . . . . Flight . | . . . . . Fastest Speed 120 | 120 120 120 120 120 Average Speed 121 | 120 120 120 121 127 Slowest Speed 190 | 120 120 120 190 190 Overloaded Moves . | . . . . . Propulsion Burnouts . | . . . . . Robots Hopped . | . . . . . Cave-ins Triggered . | . . . . . Exploration Rate (%) 31 | 2 71 38 28 17 Regions Visited 4 Branch Regions 1 Pre-discovered Areas 1 | . . 1 . . Known Exits Taken . | . . . . . Unknown Exits Taken 4 | 1 1 1 1 . Scrap Searched 1 | . . 1 . . Spaces Dug . | . . . . . Terrain Destroyed 22 | . . . . 22 Melee . | . . . . . Projectile . | . . . . . AOE 22 | . . . . 22 Terrain Rammed . | . . . . . Walls Destroyed . | . . . . . Machines Disabled . | . . . . . Actions | -11 -10 -10 -9 -8 --------- Run | Jun Mat Min Mat Mat Total 1461 | 15 596 246 411 193 Wait 143 | 15 52 . 76 . Move 1143 | . 487 237 290 129 Hop . | . . . . . Pick Up 26 | . 14 1 8 3 Fast Attach 2 | . 2 . . . Attach 16 | . . . 5 11 Detach 1 | . . . . 1 Swap 16 | . 8 1 3 4 Drop 15 | . 13 1 1 . Fire 99 | . 20 6 28 45 Melee . | . . . . . Ram . | . . . . . Kick . | . . . . . Crush . | . . . . . Escape Stasis . | . . . . . Rewire . | . . . . . Trap . | . . . . . Miscellaneous . | . . . . . Route ------- -11/Junkyard -10/Materials (discovered 3 exits: *Mat x2 / [*Min]) -10/Mines -9/Materials (discovered 2 exits: *Mat / [*Min]) -8/Materials History --------- Turn | Location | Event 12 | -11/Junkyard | Discovered new exit (range 2) 16 | -11/Junkyard | Entered Materials 317 | -10/Materials | Build established: Mutant 381 | -10/Materials | Discovered new exit (range 10) 518 | -10/Materials | Discovered new exit (range 8) 739 | -10/Materials | Discovered new exit (range 7) 748 | -10/Materials | Entered Mines 749 | -10/Mines | Met a Derelict bent on vengeance 801 | -10/Mines | Learned location of Zion (-6) 963 | -10/Mines | Discovered new exit (range 12) 1044 | -10/Mines | Assisted by bots powering up and referring to "LRC-V3" 1054 | -10/Mines | Entered Materials 1054 | -9/Materials | Accompanied by 3 allies 1054 | -9/Materials | Evolved 2 slots: Propulsion x1, Weapon x1 1058 | -9/Materials | Discovered new exit (range 8) 1239 | -9/Materials | Discovered new exit (range 11) 1354 | -9/Materials | Repaired Sensor Array 1587 | -9/Materials | Entered another Materials area 1587 | -8/Materials | Evolved 2 slots: Power x1, Propulsion x1 1647 | -8/Materials | Build established: Skirmisher 1843 | -8/Materials | Lost 8 parts (1p3n1u3w) 1875 | -8/Materials | Self-destructed Last Messages --------------- 01798_ Melted Carbon-fiber Leg. 01799_ H-55 Commando heat short circuits Lgt. Nuclear Core. 01810_ Welding Torch destroyed. 01810_ Critical hit (Burn: +37). 01812_ Aluminum Leg destroyed. 01818_ G-47 Trooper destroyed. 01818_ Penetrated by Slug. 01818_ Integration Channel disabled. 01821_ H-55 Commando destroyed. 01825_ Acquired 48 matter. 01838_ W-25 Informer sends out distress signal. 01846_ R-06 Scavenger collects Aluminum Leg. 01850_ R-06 Scavenger collects Particle Gun. 01852_ Acquired Launcher Guidance Computer. 01861_ Terminal disabled. 01863_ K-01 Serf destroyed. 01869_ The unstable cave ceiling collapses. 01872_ ALERT: Construction progress impeded, dispatching reinforcements to local area. 01872_ W-25 Informer sends out distress signal. Map ----- +----------------------------------------------------+ | ?????????????????????????????????????????????????? | | ?????????????????????????????????????????????????? | | ?????????????????????????????????????????????????? | | ?????????????????????????????????????????????????? | | ?????????????????????????????????????????????????? | | ?????????????????????????????????????????????????? | | ?????????????????????????????????????????????????? | | ?????????????????????????????????????????????????? | | ?????????????????????????????????????????????????? | | ?????????????????????????????????????????????????? | | ????????????????????###??????????????????????????? | | ???????????????????? ??????????????????????????? | | ?????????????????? ##?????????????????????????? | | ??????????????????? w # ?????????????????????????? | | ??????????????????? + =????????????????????????? | | ?????????????????### =????????????????????????? | | ??????# ?????##### ????????????????????????? | | ??????# ###### ????????????????????????? | | ??????# ????????????????????????? | | ??????# ^ Y ????????????????????????? | | ? ##### ####????????????????????? | | ? "" !!#????????????????????? | | + """"" " r !!#????????????????????? | | ? ^ "" " r ! #????????????????????? | | ??# u uk !!#????????????????????? | | ??# @!!#????????????????????? | | ??# !!#????????????????????? | | ??# #####????????????????????? | | + u %* ?????????????????? | | ???####### ##+################???????????????????? | | ?????????# # #????????????????????????????? | | ?????????? # #????????????????????????????? | | ?????????? # " #????????????????????????????? | | ?????????# # "" #????????????????????????????? | | ?????????# # """ #????????????????????????????? | | ?????????# # """ #????????????????????????????? | | ########## # = " " #????????????????????????????? | | # "T" # # % #????????????????????????????? | | # # # #????????????????????????????? | | # # #####+####????????????????????????????? | | # # #??????????????????????????????? | | # + ##########?????????????????????? | | # """ # " /// #?????????????????????? | | # """ # # /// #?????????????????????? | | # """ # # // #?????????????????????? | | #! + !%= # #?????????????????????? | | ######+########= + #?????????????????????? | | ?????# #??????# #""" #?????????????????????? | | ?????# #??????# #""" #?????????????????????? | | ????## ######## #""" #?????????????????????? | +----------------------------------------------------+ Best States ------------- Heat Dissipation 31 Energy Generation 19 Energy Capacity 430 Matter Stores 300 Matter Capacity 300 Sight Range 16 Robot Scan Range 14 Terrain Scan Density 10 Evasion (%) 55 Launcher Accuracy 20 Item Schematics ----------------- None Robot Schematics ------------------ None Fabricated ------------ Nothing Alien Tech Used ----------------- None Achievements -------------- None Challenges ------------ None Game ------ Seed AssaultFlyingEdition Manual? 0 Play Time 00:21:46 Cumulative 5.4 hours Start 2023.05.24 @ 16:55:02 End 2023.05.25 @ 13:34:52 Sessions 3 Manual Loads 0 Difficulty Rogue Special Mode None Game No. 5 Rogue 5 Adventurer 0 Explorer 0 Win Type - Total 0 Types 0/0/0/0/0/0/0/0/0 Lore% 5 Gallery% 14 Achievement% 21 Wizard Run 0 Options --------- ASCII 0 Keyboard 0 Movement Mouse Keybinds 0 Fullscreen 1 Font 18/SmallcapsGlow Map View 76x50 Tactical HUD 1 Map Filters NONE Filters NONE Steam 1 RUN: a16f33ae-54cf-4057-b5ef-d333ef6c1356